lending/lending_fUSD_20240710
["ID","MTS","AMOUNT","RATE_DAILY","PERIOD"]
[331620695,1720585870613,-651.92,0.00013808,2]
[331620696,1720585870622,-763.64,0.00013808,2]
[331620697,1720585870632,-500.0,0.00013808,2]
[331620698,1720585870641,-151.0,0.00013808,2]
[331620699,1720585870651,-281.878612,0.00013808,2]
[331620700,1720585870660,-500.0,0.00013808,2]
[331620701,1720585870669,-500.0,0.00013808,2]
[331620702,1720585870678,-1714.55,0.00013808,2]
[331620703,1720585870687,-535.96,0.00013808,2]
[331620704,1720585870696,-416.03,0.00013808,2]
[331620705,1720585870705,-600.5,0.00013808,2]
[331620706,1720585870717,-784.46,0.00013808,2]
[331620707,1720585870726,-500.0,0.00013808,2]
[331620708,1720585870735,-500.0,0.00013808,2]
[331620709,1720585870744,-500.0,0.00013808,2]
[331620710,1720585870753,-500.0,0.00013808,2]
[331620711,1720585870762,-500.0,0.00013808,2]
[331620712,1720585870771,-674.26,0.00013808,2]
[331620713,1720585870780,-500.0,0.00013808,2]
[331620714,1720585870790,-953.74,0.00013808,2]
[331620715,1720585870799,-500.0,0.00013808,2]
[331620716,1720585870808,-2242.83,0.00013808,2]
[331620717,1720585870818,-573.82,0.00013808,2]
[331620718,1720585870827,-631.1786243,0.00013808,2]
[331620719,1720585870836,-500.0,0.00013808,2]
[331620720,1720585870845,-2164.72,0.00013808,2]
[331620721,1720585870855,-500.0,0.00013808,2]
[331620722,1720585870864,-500.0,0.00013808,2]
[331620723,1720585870873,-429.37289594,0.00013808,2]
[331620724,1720585870882,-982.47,0.00013808,2]
[331620725,1720585870891,-1477.67,0.00013808,2]
[331620726,1720585870901,-500.0,0.00013808,2]
[331620727,1720585870910,-500.0,0.00013808,2]
[331620728,1720585870919,-500.0,0.00013808,2]
[331620729,1720585870929,-1781.26,0.00013808,2]
[331620730,1720585870939,-1330.76,0.00013808,2]
[331620731,1720585870948,-846.15,0.00013808,2]
[331620732,1720585870958,-500.0,0.00013808,2]
[331620733,1720585870970,-704.71,0.00013808,2]
[331620734,1720585871115,-500.0,0.00013808,2]
[331620735,1720585871124,-948.26,0.00013808,2]
[331620736,1720585871134,-596.24,0.00013808,2]
[331620737,1720585871144,-500.0,0.00013808,2]
[331620738,1720585871153,-500.0,0.00013808,2]
[331620739,1720585871164,-500.0,0.00013808,2]
[331620740,1720585871173,-827.94,0.00013808,2]
[331620741,1720585871183,-500.0,0.00013808,2]
[331620742,1720585871193,-566.1,0.00013808,2]
[331620743,1720585871203,-500.0,0.00013808,2]
[331620744,1720585871215,-652.93,0.00013808,2]
[331620745,1720585871224,-500.0,0.00013808,2]
[331620746,1720585871233,-1514.56,0.00013808,2]
[331620747,1720585871243,-872.09,0.00013808,2]
[331620748,1720585871252,-500.0,0.00013808,2]
[331620749,1720585871262,-500.0,0.00013808,2]
[331620750,1720585871271,-500.0,0.00013808,2]
[331620751,1720585871280,-878.74,0.00013808,2]
[331620752,1720585871290,-500.0,0.00013808,2]
[331620753,1720585871301,-500.0,0.00013808,2]
[331620754,1720585871311,-1237.24,0.00013808,2]
[331620755,1720585871320,-544.06,0.00013808,2]
[331620756,1720585871330,-271.51689344,0.00013808,2]
[331620757,1720585871341,-500.0,0.00013808,2]
[331620758,1720585871352,-500.0,0.00013808,2]
[331620759,1720585871363,-500.0,0.00013808,2]
[331620760,1720585871372,-500.0,0.00013808,2]
[331620761,1720585871382,-500.0,0.00013808,2]
[331620762,1720585871391,-197.83882656,0.00013808,2]
[331620763,1720585871401,-183.74,0.00013808,2]
[331620764,1720585871411,-936.62,0.00013808,2]
[331620765,1720585871421,-500.0,0.00013808,2]
[331620766,1720585871431,-660.1,0.00013808,2]
[331620767,1720585871440,-806.83,0.00013808,2]
[331620768,1720585871450,-500.0,0.00013808,2]
[331620769,1720585871459,-2500.0,0.00013808,3]
[331620770,1720585871472,-500.0,0.00013808,2]
[331620771,1720585871482,-500.0,0.00013808,2]
[331620772,1720585871492,-500.0,0.00013808,2]
[331620773,1720585871502,-914.98,0.00013808,2]
[331620774,1720585871512,-868.93,0.00013808,2]
[331620775,1720585871522,-1075.48,0.00013808,2]
[331620776,1720585871532,-500.0,0.00013808,2]
[331620777,1720585871543,-844.73,0.00013808,2]
[331620778,1720585871552,-917.11,0.00013808,2]
[331620779,1720585871563,-581.45,0.00013808,2]
[331620780,1720585871573,-779.98,0.00013808,2]
[331620781,1720585871582,-500.0,0.00013808,2]
[331620782,1720585871592,-500.0,0.00013808,2]
[331620783,1720585871602,-1175.87,0.00013808,2]
[331620784,1720585871612,-1610.97,0.00013808,2]
[331620785,1720585871621,-1032.41,0.00013808,2]
[331620786,1720585871632,-2534.44,0.00013808,2]
[331620787,1720585871643,-500.0,0.00013808,2]
[331620788,1720585871653,-500.0,0.00013808,2]
[331620789,1720585871663,-729.64,0.00013808,2]
[331620790,1720585871672,-1195.78,0.00013808,2]
[331620791,1720585871682,-500.0,0.00013808,2]
[331620792,1720585871691,-719.58,0.00013808,2]
[331620793,1720585871701,-500.0,0.00013808,2]
[331620794,1720585871710,-500.0,0.00013808,2]
[331620795,1720585871723,-971.46,0.00013808,2]
[331620796,1720585871733,-1370.82,0.00013808,2]
[331620797,1720585871743,-500.0,0.00013808,2]
[331620798,1720585871752,-500.0,0.00013808,2]
[331620799,1720585871762,-500.0,0.00013808,2]
[331620800,1720585871772,-1431.47,0.00013808,2]
[331620801,1720585871782,-522.43063586,0.00013808,2]
[331620802,1720585871792,-500.0,0.00013808,2]
[331620803,1720585871801,-500.0,0.00013808,2]
[331620804,1720585871811,-500.0,0.00013808,2]
[331620805,1720585871822,-500.0,0.00013808,2]
[331620806,1720585871832,-500.0,0.00013808,2]
[331620807,1720585871843,-500.0,0.00013808,2]
[331620808,1720585871855,-611.27,0.00013808,2]
[331620809,1720585871865,-1353.9,0.00013808,2]
[331620810,1720585871875,-697.06,0.00013808,2]
[331620811,1720585871885,-1951.99,0.00013808,2]
[331620812,1720585871895,-500.0,0.00013808,2]
[331620813,1720585871904,-500.0,0.00013808,2]
[331620814,1720585871914,-524.02069814,0.00013808,2]
[331620815,1720585871923,-500.0,0.00013808,2]
[331620816,1720585871933,-500.0,0.00013808,2]
[331620817,1720585871944,-178.571732,0.00013808,2]
[331620818,1720585871953,-178.571732,0.00013808,2]
[331620819,1720585871962,-500.0,0.00013808,2]
[331620820,1720585871972,-611.56162597,0.00013808,2]
[331620821,1720585871982,-641.04,0.00013808,2]
[331620822,1720585871991,-800.22,0.00013808,2]
[331620823,1720585872000,-771.77,0.00013808,2]
[331620824,1720585872010,-500.0,0.00013808,2]
[331620825,1720585872019,-178.571732,0.00013808,2]
[331620826,1720585872032,-178.571732,0.00013808,2]
[331620827,1720585872043,-500.0,0.00013808,2]
[331620828,1720585872052,-1096.31,0.00013808,2]
[331620829,1720585872061,-500.0,0.00013808,2]
[331620830,1720585872071,-555.09,0.00013808,2]
[331620831,1720585872082,-500.0,0.00013808,2]
[331620832,1720585872091,-567.91,0.00013808,2]
[331620833,1720585872102,-1046.7,0.00013808,2]
[331620834,1720585872112,-500.0,0.00013808,2]
[331620835,1720585872124,-151.0,0.00013808,2]
[331620836,1720585872133,-151.0,0.00013808,2]
[331620837,1720585872145,-617.05,0.00013808,2]
[331620838,1720585872156,-1093.83,0.00013808,2]
[331620839,1720585872171,-570.9,0.00013808,2]
[331620840,1720585872181,-500.0,0.00013808,2]
[331620841,1720585872192,-202.44521518,0.00013808,2]
[331620842,1720585872204,-500.0,0.00013808,2]
[331620843,1720585872215,-802.13,0.00013808,2]
[331620844,1720585872225,-539.46,0.00013808,2]
[331620845,1720585872234,-658.46,0.00013808,2]
[331620846,1720585872243,-500.0,0.00013808,2]
[331620847,1720585872253,-1718.62,0.00013808,2]
[331620848,1720585872263,-500.0,0.00013808,2]
[331620849,1720585872273,-631.79,0.00013808,2]
[331620850,1720585872283,-1527.46,0.00013808,2]
[331620851,1720585872293,-500.0,0.00013808,2]
[331620852,1720585872303,-618.87,0.00013808,2]
[331620853,1720585872314,-500.0,0.00013808,2]
[331620854,1720585872323,-500.0,0.00013808,2]
[331620855,1720585872333,-500.0,0.00013808,2]
[331620856,1720585872344,-711.98,0.00013808,2]
[331620857,1720585872356,-500.0,0.00013808,2]
[331620858,1720585872365,-500.0,0.00013808,2]
[331620859,1720585872375,-1186.74,0.00013808,2]
[331620860,1720585872384,-500.0,0.00013808,2]
[331620861,1720585872395,-859.9,0.00013808,2]
[331620862,1720585872405,-500.0,0.00013808,2]
[331620863,1720585872414,-760.18,0.00013808,2]
[331620864,1720585872424,-593.09,0.00013808,2]
[331620865,1720585872434,-690.51,0.00013808,2]
[331620866,1720585872444,-560.93,0.00013808,2]
[331620867,1720585872455,-500.0,0.00013808,2]
[331620868,1720585872468,-731.62,0.00013808,2]
[331620869,1720585872479,-500.0,0.00013808,2]
[331620870,1720585872490,-1294.67,0.00013808,2]
[331620871,1720585872499,-582.95,0.00013808,2]
[331620872,1720585872509,-500.0,0.00013808,2]
[331620873,1720585872519,-558.4,0.00013808,2]
[331620874,1720585872529,-500.0,0.00013808,2]
[331620875,1720585872539,-1797.64,0.00013808,2]
[331620876,1720585872549,-844.18,0.00013808,2]
[331620877,1720585872559,-500.0,0.00013808,2]
[331620878,1720585872569,-820.07,0.00013808,2]
[331620879,1720585872579,-500.0,0.00013808,2]
[331620880,1720585872588,-706.97,0.00013808,2]
[331620881,1720585872597,-2584.77,0.00013808,2]
[331620882,1720585872607,-1853.58,0.00013808,2]
[331620883,1720585872616,-500.0,0.00013808,2]
[331620884,1720585872629,-500.0,0.00013808,2]
[331620885,1720585872639,-761.59,0.00013808,2]
[331620886,1720585872649,-1146.59,0.00013808,2]
[331620887,1720585872660,-608.62,0.00013808,2]
[331620888,1720585872669,-500.0,0.00013808,2]
[331620889,1720585872679,-500.0,0.00013808,2]
[331620890,1720585872689,-1620.37,0.00013808,2]
[331620891,1720585872698,-958.82,0.00013808,2]
[331620892,1720585872708,-500.0,0.00013808,2]
[331620893,1720585872720,-500.0,0.00013808,2]
[331620894,1720585872730,-630.26,0.00013808,2]
[331620895,1720585872739,-584.65,0.00013808,2]
[331620896,1720585872749,-2064.45,0.00013808,2]
[331620897,1720585872758,-500.0,0.00013808,2]
[331620898,1720585872767,-500.0,0.00013808,2]
[331620899,1720585872776,-288.11134727,0.00013808,2]
[331620900,1720585872785,-1252.3,0.00013808,2]
[331620901,1720585872795,-500.0,0.00013808,2]
[331620902,1720585872804,-514.92,0.00013808,2]
[331620903,1720585872814,-500.0,0.00013808,2]
[331620904,1720585872823,-500.0,0.00013808,2]
[331620905,1720585872833,-801.78,0.00013808,2]
[331620906,1720585872842,-500.0,0.00013808,2]
[331620907,1720585872851,-500.0,0.00013808,2]
[331620908,1720585872861,-1373.06,0.00013808,2]
[331620909,1720585872871,-1004.08,0.00013808,2]
[331620910,1720585872880,-500.0,0.00013808,2]
[331620911,1720585872889,-500.0,0.00013808,2]
[331620912,1720585872898,-1825.25,0.00013808,2]
[331620913,1720585872907,-500.0,0.00013808,2]
[331620914,1720585872917,-1559.67,0.00013808,2]
[331620915,1720585872926,-861.76,0.00013808,2]
[331620916,1720585872935,-500.0,0.00013808,2]
[331620917,1720585872944,-500.0,0.00013808,2]
[331620918,1720585872954,-954.39,0.00013808,2]
[331620919,1720585872966,-500.0,0.00013808,2]
[331620920,1720585872975,-925.62,0.00013808,2]
[331620921,1720585872985,-1009.2,0.00013808,2]
[331620922,1720585872994,-500.0,0.00013808,2]
[331620923,1720585873003,-500.0,0.00013808,2]
[331620924,1720585873012,-500.0,0.00013808,2]
[331620925,1720585873022,-1262.27,0.00013808,2]
[331620926,1720585873031,-663.35,0.00013808,2]
[331620927,1720585873040,-500.0,0.00013808,2]
[331620928,1720585873050,-500.0,0.00013808,2]
[331620929,1720585873059,-500.0,0.00013808,2]
[331620930,1720585873069,-649.39,0.00013808,2]
[331620931,1720585873078,-1363.43,0.00013808,2]
[331620932,1720585873088,-2022.37,0.00013808,2]
[331620933,1720585873097,-500.0,0.00013808,2]
[331620934,1720585873107,-1304.98,0.00013808,2]
[331620935,1720585873116,-606.38,0.00013808,2]
[331620936,1720585873126,-1366.08,0.00013808,2]
[331620937,1720585873135,-1680.63,0.00013808,2]
[331620938,1720585873145,-523.84,0.00013808,2]
[331620939,1720585873155,-500.0,0.00013808,2]
[331620940,1720585873165,-500.0,0.00013808,2]
[331620941,1720585873175,-500.0,0.00013808,2]
[331620942,1720585873185,-500.0,0.00013808,2]
[331620943,1720585873195,-844.16,0.00013808,2]
[331620944,1720585873206,-802.32,0.00013808,2]
[331620945,1720585873217,-500.0,0.00013808,2]
[331620946,1720585873226,-500.0,0.00013808,2]
[331620947,1720585873235,-3446.95,0.00013808,2]
[331620948,1720585873244,-1165.89,0.00013808,2]
[331620949,1720585873253,-500.0,0.00013808,2]
[331620950,1720585873604,-500.0,0.00013808,2]
[331620951,1720585873614,-628.47,0.00013808,2]
[331620952,1720585873624,-500.0,0.00013808,2]
[331620953,1720585873633,-711.93,0.00013808,2]
[331620954,1720585873644,-684.26,0.00013808,2]
[331620955,1720585873654,-547.44,0.00013808,2]
[331620956,1720585873663,-497.03133282,0.00013808,2]
[331620957,1720585873674,-1000.0,0.00013808,2]
[331620958,1720585873683,-2498.79,0.00013808,2]
[331620959,1720585873694,-518.34,0.00013808,2]
[331620960,1720585873703,-791.01,0.00013808,2]
[331620961,1720585873712,-1817.8,0.00013808,2]
[331620962,1720585873724,-500.0,0.00013808,2]
[331620963,1720585873734,-500.0,0.00013808,2]
[331620964,1720585873743,-746.04,0.00013808,2]
[331620965,1720585873753,-500.0,0.00013808,2]
[331620966,1720585873762,-500.0,0.00013808,2]
[331620967,1720585873771,-500.0,0.00013808,2]
[331620968,1720585873781,-1103.53,0.00013808,2]
[331620969,1720585873791,-543.51,0.00013808,2]
[331620970,1720585873801,-500.0,0.00013808,2]
[331620971,1720585873810,-730.99,0.00013808,2]
[331620972,1720585873819,-500.0,0.00013808,2]
[331620973,1720585873828,-500.0,0.00013808,2]
[331620974,1720585873838,-818.31,0.00013808,2]
[331620975,1720585873847,-500.0,0.00013808,2]
[331620976,1720585873856,-1419.37,0.00013808,2]
[331620977,1720585873866,-500.0,0.00013808,2]
[331620978,1720585873875,-3205.86,0.00013808,2]
[331620979,1720585873885,-500.0,0.00013808,2]
[331620980,1720585873894,-798.56,0.00013808,2]
[331620981,1720585873903,-500.0,0.00013808,2]
[331620982,1720585873913,-500.0,0.00013808,2]
[331620983,1720585873923,-500.0,0.00013808,2]
[331620984,1720585873932,-866.16,0.00013808,2]
[331620985,1720585873942,-500.0,0.00013808,2]
[331620986,1720585873951,-1516.55,0.00013808,2]
[331620987,1720585873961,-500.0,0.00013808,2]
[331620988,1720585873975,-752.96,0.00013808,2]
[331620989,1720585873985,-774.8,0.00013808,2]
[331620990,1720585873995,-585.85,0.00013808,2]
[331620991,1720585874006,-931.09,0.00013808,2]
[331620992,1720585874016,-1049.46,0.00013808,2]
[331620993,1720585874025,-500.0,0.00013808,2]
[331620994,1720585874035,-500.0,0.00013808,2]
[331620995,1720585874044,-500.0,0.00013808,2]
[331620996,1720585874054,-948.85,0.00013808,2]
[331620997,1720585874064,-500.0,0.00013808,2]
[331620998,1720585874074,-500.0,0.00013808,2]
[331620999,1720585874084,-500.0,0.00013808,2]
[331621000,1720585874093,-500.0,0.00013808,2]
[331621001,1720585874103,-500.0,0.00013808,2]
[331621002,1720585874114,-500.0,0.00013808,2]
[331621003,1720585874125,-885.07,0.00013808,2]
[331621004,1720585874136,-1471.78,0.00013808,2]
[331621005,1720585874147,-667.45,0.00013808,2]
[331621006,1720585874156,-983.21,0.00013808,2]
[331621007,1720585874167,-500.0,0.00013808,2]
[331621008,1720585874176,-500.0,0.00013808,2]
[331621009,1720585874186,-751.48,0.00013808,2]
[331621010,1720585874196,-1761.04,0.00013808,2]
[331621011,1720585874206,-822.96,0.00013808,2]
[331621012,1720585874218,-500.0,0.00013808,2]
[331621013,1720585874227,-500.0,0.00013808,2]
[331621014,1720585874237,-500.0,0.00013808,2]
[331621015,1720585874246,-1876.05,0.00013808,2]
[331621016,1720585874256,-731.16,0.00013808,2]
[331621017,1720585874266,-1571.18,0.00013808,2]
[331621018,1720585874275,-500.0,0.00013808,2]
[331621019,1720585874285,-842.38,0.00013808,2]
[331621020,1720585874295,-700.03,0.00013808,2]
[331621021,1720585874304,-500.0,0.00013808,2]
[331621022,1720585874316,-1425.86,0.00013808,2]
[331621023,1720585874326,-1049.59,0.00013808,2]
[331621024,1720585874336,-500.0,0.00013808,2]
[331621025,1720585874346,-500.0,0.00013808,2]
[331621026,1720585874356,-500.0,0.00013808,2]
[331621027,1720585874366,-870.77,0.00013808,2]
[331621028,1720585874376,-500.0,0.00013808,2]
[331621029,1720585874386,-647.93,0.00013808,2]
[331621030,1720585874396,-500.0,0.00013808,2]
[331621031,1720585874405,-151.0,0.00013808,2]
[331621032,1720585874415,-751.82,0.00013808,2]
[331621033,1720585874425,-500.0,0.00013808,2]
[331621034,1720585874434,-1276.28,0.00013808,2]
[331621035,1720585874444,-849.81,0.00013808,2]
[331621036,1720585874454,-2406.75,0.00013808,2]
[331621037,1720585874463,-1443.49,0.00013808,2]
[331621038,1720585874475,-607.24,0.00013808,2]
[331621039,1720585874485,-1349.76,0.00013808,2]
[331621040,1720585874495,-1765.23,0.00013808,2]
[331621041,1720585874504,-1110.97,0.00013808,2]
[331621042,1720585874514,-500.0,0.00013808,2]
[331621043,1720585874524,-1888.87,0.00013808,2]
[331621044,1720585874535,-500.0,0.00013808,2]
[331621045,1720585874545,-500.0,0.00013808,2]
[331621046,1720585874555,-699.16,0.00013808,2]
[331621047,1720585874565,-855.12,0.00013808,2]
[331621048,1720585874574,-569.26,0.00013808,2]
[331621049,1720585874584,-729.33,0.00013808,2]
[331621050,1720585874594,-1710.62,0.00013808,2]
[331621051,1720585874603,-500.0,0.00013808,2]
[331621052,1720585874613,-500.0,0.00013808,2]
[331621053,1720585874624,-691.81,0.00013808,2]
[331621054,1720585874634,-2461.92,0.00013808,2]
[331621055,1720585874644,-508.89,0.00013808,2]
[331621056,1720585874654,-2647.01,0.00013808,2]
[331621057,1720585874664,-955.63,0.00013808,2]
[331621058,1720585874674,-586.17,0.00013808,2]
[331621059,1720585874684,-2273.54,0.00013808,2]
[331621060,1720585874694,-653.33,0.00013808,2]
[331621061,1720585874704,-500.0,0.00013808,2]
[331621062,1720585874714,-500.0,0.00013808,2]
[331621063,1720585874730,-155.12015402,0.00013808,2]
[331621064,1720585874740,-587.65,0.00013808,2]
[331621065,1720585874750,-500.0,0.00013808,2]
[331621066,1720585874760,-2957.79,0.00013808,2]
[331621067,1720585874770,-500.0,0.00013808,2]
[331621068,1720585874780,-555.51,0.00013808,2]
[331621069,1720585874790,-613.64,0.00013808,2]
[331621070,1720585874799,-611.31,0.00013808,2]
[331621071,1720585874809,-1419.46,0.00013808,2]
[331621072,1720585874819,-1973.86,0.00013808,2]
[331621073,1720585874829,-2043.98,0.00013808,2]
[331621074,1720585874839,-1400.83,0.00013808,2]
[331621075,1720585874849,-708.9,0.00013808,2]
[331621076,1720585874859,-557.25,0.00013808,2]
[331621077,1720585874868,-1981.12,0.00013808,2]
[331621078,1720585874878,-1044.9,0.00013808,2]
[331621079,1720585874887,-2171.47,0.00013808,2]
[331621080,1720585874897,-500.0,0.00013808,2]
[331621081,1720585874906,-500.0,0.00013808,2]
[331621082,1720585874916,-519.42,0.00013808,2]
[331621083,1720585874926,-500.0,0.00013808,2]
[331621084,1720585874935,-500.0,0.00013808,2]
[331621085,1720585874945,-1869.63,0.00013808,2]
[331621086,1720585874955,-539.15,0.00013808,2]
[331621087,1720585874964,-1039.01,0.00013808,2]
[331621088,1720585874977,-623.44,0.00013808,2]
[331621089,1720585874986,-2087.01,0.00013808,2]
[331621090,1720585874995,-500.0,0.00013808,2]
[331621091,1720585875004,-842.11,0.00013808,2]
[331621092,1720585875013,-863.59,0.00013808,2]
[331621093,1720585875022,-500.0,0.00013808,2]
[331621094,1720585875032,-500.0,0.00013808,2]
[331621095,1720585875041,-500.0,0.00013808,2]
[331621096,1720585875051,-500.0,0.00013808,2]
[331621097,1720585875060,-500.0,0.00013808,2]
[331621098,1720585875070,-1200.66,0.00013808,2]
[331621099,1720585875079,-1180.08,0.00013808,2]
[331621100,1720585875089,-500.0,0.00013808,2]
[331621101,1720585875099,-500.0,0.00013808,2]
[331621102,1720585875108,-2931.09,0.00013808,2]
[331621103,1720585875118,-2071.87,0.00013808,2]
[331621104,1720585875127,-538.22,0.00013808,2]
[331621105,1720585875137,-500.0,0.00013808,2]
[331621106,1720585875147,-892.24,0.00013808,2]
[331621107,1720585875156,-500.0,0.00013808,2]
[331621108,1720585875167,-500.0,0.00013808,2]
[331621109,1720585875176,-500.0,0.00013808,2]
[331621110,1720585875186,-1983.96,0.00013808,2]
[331621111,1720585875197,-676.39,0.00013808,2]
[331621112,1720585875207,-500.0,0.00013808,2]
[331621113,1720585875219,-1557.86,0.00013808,2]
[331621114,1720585875228,-324.66762498,0.00013808,2]
[331621115,1720585875238,-551.23,0.00013808,2]
[331621116,1720585875247,-1172.12,0.00013808,2]
[331621117,1720585875257,-1960.56,0.00013808,2]
[331621118,1720585875267,-838.55,0.00013808,2]
[331621119,1720585875276,-500.0,0.00013808,2]
[331621120,1720585875286,-1111.48,0.00013808,2]
[331621121,1720585875295,-1440.63,0.00013808,2]
[331621122,1720585875305,-500.0,0.00013808,2]
[331621123,1720585875314,-764.69,0.00013808,2]
[331621124,1720585875324,-1443.43,0.00013808,2]
[331621125,1720585875334,-847.37,0.00013808,2]
[331621126,1720585875344,-714.36,0.00013808,2]
[331621127,1720585875354,-2188.39,0.00013808,2]
[331621128,1720585875363,-1659.35,0.00013808,2]
[331621129,1720585875373,-2892.17,0.00013808,2]
[331621130,1720585875382,-500.0,0.00013808,2]
[331621131,1720585875394,-1465.37,0.00013808,2]
[331621132,1720585875406,-500.0,0.00013808,2]
[331621133,1720585875416,-577.57932413,0.00013808,2]
[331621134,1720585875426,-1600.95,0.00013808,2]
[331621135,1720585875436,-500.0,0.00013808,2]
[331621136,1720585875446,-500.0,0.00013808,2]
[331621137,1720585875456,-1057.63,0.00013808,2]
[331621138,1720585875466,-500.0,0.00013808,2]
[331621139,1720585875477,-500.0,0.00013808,2]
[331621140,1720585875487,-500.0,0.00013808,2]
[331621141,1720585875497,-3267.09,0.00013808,2]
[331621142,1720585875507,-500.0,0.00013808,2]
[331621143,1720585875517,-650.85,0.00013808,2]
[331621144,1720585875526,-1207.65,0.00013808,2]
[331621145,1720585875536,-500.0,0.00013808,2]
[331621146,1720585875546,-913.67,0.00013808,2]
[331621147,1720585875556,-801.34,0.00013808,2]
[331621148,1720585875566,-500.0,0.00013808,2]
[331621149,1720585875576,-2833.8,0.00013808,2]
[331621150,1720585875586,-501.07,0.00013808,2]
[331621151,1720585875595,-2268.36,0.00013808,2]
[331621152,1720585875606,-535.19,0.00013808,2]
[331621153,1720585875616,-500.0,0.00013808,2]
[331621154,1720585875626,-500.0,0.00013808,2]
[331621155,1720585875636,-2192.0,0.00013808,2]
[331621156,1720585875645,-500.0,0.00013808,2]
[331621157,1720585875655,-500.0,0.00013808,2]
[331621158,1720585875666,-613.51,0.00013808,2]
[331621159,1720585875675,-151.0,0.00013808,2]
[331621160,1720585875684,-1249.3,0.00013808,2]
[331621161,1720585875695,-154.163192,0.00013808,2]
[331621162,1720585875704,-500.0,0.00013808,2]
[331621163,1720585875714,-2306.48,0.00013808,2]
[331621164,1720585875727,-1228.26,0.00013808,2]
[331621165,1720585875737,-500.0,0.00013808,2]
[331621166,1720585875746,-1024.9,0.00013808,2]
[331621167,1720585875755,-730.89,0.00013808,2]
[331621168,1720585875764,-500.0,0.00013808,2]
[331621169,1720585875774,-2711.64,0.00013808,2]
[331621170,1720585875783,-500.0,0.00013808,2]
[331621171,1720585875793,-500.0,0.00013808,2]
[331621172,1720585875803,-896.57,0.00013808,2]
[331621173,1720585875812,-525.88,0.00013808,2]
[331621174,1720585875822,-995.36,0.00013808,2]
[331621175,1720585875832,-464.26856952,0.00013808,2]
[331621176,1720585875841,-247.36965677,0.00013808,2]
[331621177,1720585875851,-500.0,0.00013808,2]
[331621178,1720585875861,-500.0,0.00013808,2]
[331621179,1720585875871,-1403.41,0.00013808,2]
[331621180,1720585875880,-2196.67,0.00013808,2]
[331621181,1720585875890,-500.0,0.00013808,2]
[331621182,1720585875900,-500.0,0.00013808,2]
[331621183,1720585875910,-2053.0,0.00013808,2]
[331621184,1720585875920,-500.0,0.00013808,2]
[331621185,1720585875930,-500.0,0.00013808,2]
[331621186,1720585875939,-909.54,0.00013808,2]
[331621187,1720585875948,-624.91,0.00013808,2]
[331621188,1720585875958,-1188.13,0.00013808,2]
[331621189,1720585875969,-762.9,0.00013808,2]
[331621190,1720585875978,-500.0,0.00013808,2]
[331621191,1720585876086,-609.12,0.00013808,2]
[331621192,1720585876096,-500.0,0.00013808,2]
[331621193,1720585876105,-890.48,0.00013808,2]
[331621194,1720585876115,-500.0,0.00013808,2]